[Event "BPB Limburg Open 2019 Group A"]
[Site "Maastricht, Netherlands"]
[Date "2019.06.10"]
[Round "6.7"]
[White "Barzen, Pascal"]
[Black "Dambacher, Martijn"]
[Result "1-0"]
[TimeControl "2h + 15 sec/move"]
[WhiteFideId "24653497"]
[BlackFideId "1005030"]
[WhiteElo "2292"]
[BlackElo "2511"]

1. e4 {[%clk 02:00:28]} {[%emt 00:00:01]} e5 {[%clk 01:59:42]} {[%emt
00:00:49]} 2. Nf3 {[%clk 02:00:26]} {[%emt 00:00:17]} Nc6 {[%clk 01:59:52]}
{[%emt 00:00:05]} 3. Bb5 {[%clk 02:00:24]} {[%emt 00:00:17]} g6 {[%clk
01:59:35]} {[%emt 00:00:31]} 4. O-O {[%clk 02:00:03]} {[%emt 00:00:36]} Bg7
{[%clk 01:59:42]} {[%emt 00:00:10]} 5. c3 {[%clk 01:59:31]} {[%emt 00:00:46]}
a6 {[%clk 01:59:39]} {[%emt 00:00:18]} 6. Ba4 {[%clk 01:59:28]} {[%emt
00:00:18]} Nge7 {[%clk 01:59:20]} {[%emt 00:00:34]} 7. d4 {[%clk 01:58:48]}
{[%emt 00:00:55]} exd4 {[%clk 01:59:26]} {[%emt 00:00:09]} 8. cxd4 {[%clk
01:58:38]} {[%emt 00:00:25]} b5 {[%clk 01:59:26]} {[%emt 00:00:15]} 9. Bb3
{[%clk 01:58:10]} {[%emt 00:00:43]} O-O {[%clk 01:58:54]} {[%emt 00:00:46]} 10.
d5 {[%clk 01:55:29]} {[%emt 00:02:56]} Na5 {[%clk 01:58:36]} {[%emt 00:00:33]}
11. Bc2 {[%clk 01:51:31]} {[%emt 00:04:13]} d6 {[%clk 01:58:10]} {[%emt
00:00:41]} 12. Nc3 {[%clk 01:50:30]} {[%emt 00:01:16]} Bb7 {[%clk 01:55:45]}
{[%emt 00:02:40]} 13. Bf4 {[%clk 01:47:06]} {[%emt 00:03:39]} Rc8 {[%clk
01:36:56]} {[%emt 00:19:04]} 14. Qc1 {[%clk 01:35:30]} {[%emt 00:11:51]} c6
{[%clk 01:34:46]} {[%emt 00:02:25]} 15. dxc6 {[%clk 01:35:03]} {[%emt
00:00:41]} Bxc6 {[%clk 01:29:12]} {[%emt 00:05:49]} 16. a3 {[%clk 01:33:57]}
{[%emt 00:01:22]} Re8 {[%clk 01:08:15]} {[%emt 00:21:12]} 17. Bh6 {[%clk
01:30:46]} {[%emt 00:03:25]} Bh8 {[%clk 01:07:08]} {[%emt 00:01:22]} 18. Qf4
{[%clk 01:28:31]} {[%emt 00:02:30]} d5 {[%clk 00:56:42]} {[%emt 00:10:41]} 19.
Ng5 {[%clk 01:08:43]} {[%emt 00:20:02]} f6 {[%clk 00:55:10]} {[%emt 00:01:47]}
20. Nf3 {[%clk 00:59:44]} {[%emt 00:09:14]} dxe4 {[%clk 00:50:00]} {[%emt
00:05:25]} 21. Rad1 {[%clk 00:54:32]} {[%emt 00:05:28]} Nd5 {[%clk 00:45:38]}
{[%emt 00:04:36]} 22. Nxd5 {[%clk 00:42:52]} {[%emt 00:11:55]} Bxd5 {[%clk
00:45:41]} {[%emt 00:00:12]} 23. Ne1 {[%clk 00:40:15]} {[%emt 00:02:52]} Re5
{[%clk 00:38:32]} {[%emt 00:07:24]} 24. Qg3 {[%clk 00:37:48]} {[%emt 00:02:42]}
Qe7 {[%clk 00:34:20]} {[%emt 00:04:28]} 25. Bf4 {[%clk 00:37:28]} {[%emt
00:00:35]} Rf5 {[%clk 00:34:12]} {[%emt 00:00:22]} 26. Nf3 {[%clk 00:28:02]}
{[%emt 00:09:41]} Bb7 {[%clk 00:28:17]} {[%emt 00:06:10]} 27. Nd4 {[%clk
00:26:36]} {[%emt 00:01:41]} Rd5 {[%clk 00:28:08]} {[%emt 00:00:24]} 28. b4
{[%clk 00:20:24]} {[%emt 00:06:27]} Nc4 {[%clk 00:26:09]} {[%emt 00:02:13]} 29.
Bb3 {[%clk 00:20:31]} {[%emt 00:00:09]} Rcd8 {[%clk 00:23:49]} {[%emt
00:02:35]} 30. Ne2 {[%clk 00:19:56]} {[%emt 00:00:50]} Rd3 {[%clk 00:22:18]}
{[%emt 00:01:46]} 31. Rxd3 {[%clk 00:19:11]} {[%emt 00:01:00]} Rxd3 {[%clk
00:22:12]} {[%emt 00:00:21]} 32. Bxc4+ {[%clk 00:19:20]} {[%emt 00:00:07]} bxc4
{[%clk 00:22:23]} {[%emt 00:00:04]} 33. Be3 {[%clk 00:19:19]} {[%emt 00:00:16]}
f5 {[%clk 00:21:06]} {[%emt 00:01:31]} 34. Qb8+ {[%clk 00:16:36]} {[%emt
00:02:58]} Rd8 {[%clk 00:20:56]} {[%emt 00:00:25]} 35. Qa7 {[%clk 00:16:39]}
{[%emt 00:00:12]} Be5 {[%clk 00:18:42]} {[%emt 00:02:29]} 36. Rc1 {[%clk
00:15:50]} {[%emt 00:01:05]} Bb2 {[%clk 00:13:12]} {[%emt 00:05:44]} 37. Rb1
{[%clk 00:15:51]} {[%emt 00:00:13]} Qd7 {[%clk 00:12:31]} {[%emt 00:00:56]} 38.
h4 {[%clk 00:13:38]} {[%emt 00:02:28]} Be5 {[%clk 00:11:11]} {[%emt 00:01:36]}
39. g3 {[%clk 00:13:39]} {[%emt 00:00:13]} Rc8 {[%clk 00:08:40]} {[%emt
00:02:46]} 40. Kh2 {[%clk 00:09:04]} {[%emt 00:04:50]} c3 {[%clk 00:07:21]}
{[%emt 00:01:34]} 41. Rc1 {[%clk 00:08:15]} {[%emt 00:01:03]} Rc4 {[%clk
00:06:05]} {[%emt 00:01:31]} 42. Qb6 {[%clk 00:07:14]} {[%emt 00:01:16]} c2
{[%clk 00:05:04]} {[%emt 00:01:15]} 43. h5 {[%clk 00:06:01]} {[%emt 00:01:28]}
gxh5 {[%clk 00:04:43]} {[%emt 00:00:36]} 44. Qh6 {[%clk 00:05:50]} {[%emt
00:00:26]} Bb2 {[%clk 00:03:20]} {[%emt 00:01:39]} 45. Qg5+ {[%clk 00:05:35]}
{[%emt 00:00:30]} Qg7 {[%clk 00:02:56]} {[%emt 00:00:39]} 46. Qd8+ {[%clk
00:05:31]} {[%emt 00:00:19]} Qf8 {[%clk 00:03:04]} {[%emt 00:00:07]} 47. Qg5+
{[%clk 00:05:34]} {[%emt 00:00:12]} Kh8 {[%clk 00:02:48]} {[%emt 00:00:32]} 48.
Nf4 {[%clk 00:05:43]} {[%emt 00:00:06]} Qf6 {[%clk 00:02:00]} {[%emt 00:01:03]}
49. Qxh5 {[%clk 00:05:35]} {[%emt 00:00:22]} Rc8 {[%clk 00:02:14]} {[%emt
00:00:02]} 50. Rxc2 {[%clk 00:05:32]} {[%emt 00:00:18]} Kg8 {[%clk 00:01:14]}
{[%emt 00:01:15]} 51. Rxc8+ {[%clk 00:05:29]} {[%emt 00:00:18]} Bxc8 {[%clk
00:01:27]} {[%emt 00:00:02]} 52. Nd5 {[%clk 00:04:55]} {[%emt 00:00:49]} Qe5
{[%clk 00:01:15]} {[%emt 00:00:27]} 53. Qg5+ {[%clk 00:04:44]} {[%emt
00:00:26]} Kf7 {[%clk 00:01:28]} {[%emt 00:00:02]} 54. Qd8 {[%clk 00:04:24]}
{[%emt 00:00:34]} Qe6 {[%clk 00:01:01]} {[%emt 00:00:42]} 55. Bc5 {[%clk
00:03:45]} {[%emt 00:00:54]} Bg7 {[%clk 00:01:00]} {[%emt 00:00:17]} 56. Nb6
{[%clk 00:03:43]} {[%emt 00:00:17]} e3 {[%clk 00:00:48]} {[%emt 00:00:27]} 57.
Qc7+ {[%clk 00:03:16]} {[%emt 00:00:42]} Kg6 {[%clk 00:00:47]} {[%emt
00:00:16]} 58. Bxe3 {[%clk 00:03:23]} {[%emt 00:00:08]} f4 {[%clk 00:00:49]}
{[%emt 00:00:13]} 59. Bxf4 {[%clk 00:03:12]} {[%emt 00:00:26]} Qh3+ {[%clk
00:01:01]} {[%emt 00:00:02]} 60. Kg1 {[%clk 00:03:26]} {[%emt 00:00:01]} Be6
{[%clk 00:01:13]} {[%emt 00:00:04]} 61. Qd6 {[%clk 00:03:08]} {[%emt 00:00:33]}
Qf5 {[%clk 00:00:47]} {[%emt 00:00:41]} 62. Nd7 {[%clk 00:02:52]} {[%emt
00:00:31]} h5 {[%clk 00:00:44]} {[%emt 00:00:18]} 63. Nc5 {[%clk 00:02:59]}
{[%emt 00:00:08]} Kf7 {[%clk 00:00:51]} {[%emt 00:00:08]} 64. Qxe6+ {[%clk
00:02:42]} {[%emt 00:00:33]} Qxe6 {[%clk 00:01:05]} 65. Nxe6 {[%clk 00:02:56]}
Kxe6 {[%clk 00:01:18]} {[%emt 00:00:02]} 66. a4 {[%clk 00:03:03]} {[%emt
00:00:08]} Kd5 {[%clk 00:01:33]} 67. Kg2 {[%clk 00:02:10]} {[%emt 00:01:08]}
Kc4 {[%clk 00:01:46]} {[%emt 00:00:02]} 68. Bd6 {[%clk 00:02:18]} {[%emt
00:00:06]} Kd5 {[%clk 00:00:35]} {[%emt 00:01:27]} 69. Be7 {[%clk 00:02:31]}
{[%emt 00:00:02]} Ke6 {[%clk 00:00:45]} {[%emt 00:00:05]} 70. Bc5 {[%clk
00:02:37]} {[%emt 00:00:09]} Kd5 {[%clk 00:00:59]} {[%emt 00:00:01]} 71. a5
{[%clk 00:02:44]} {[%emt 00:00:08]} Bc3 {[%clk 00:01:02]} {[%emt 00:00:12]} 72.
Kh3 {[%clk 00:02:47]} {[%emt 00:00:12]} Bf6 {[%clk 00:01:15]} {[%emt 00:00:02]}
73. f4 {[%clk 00:02:34]} {[%emt 00:00:28]} Bd8 {[%clk 00:01:15]} {[%emt
00:00:15]} 74. g4 {[%clk 00:02:39]} {[%emt 00:00:10]} hxg4+ {[%clk 00:01:29]}
{[%emt 00:00:01]} 75. Kxg4 {[%clk 00:02:53]} Bxa5 {[%clk 00:00:52]} {[%emt
00:00:53]} 76. bxa5 {[%clk 00:03:01]} {[%emt 00:00:06]} Kxc5 {[%clk 00:01:06]}
{[%emt 00:00:01]} 77. Kg5 {[%clk 00:03:01]} {[%emt 00:00:15]} Kd5 {[%emt
00:00:06]} 1-0

[Event "BPB Limburg Open 2019 Group A"]
[Site "Maastricht, Netherlands"]
[Date "2019.06.10"]
[Round "6.9"]
[White "Van Meegen, Ruud"]
[Black "Schoppen, Casper"]
[Result "0-1"]
[TimeControl "2h + 15 sec/move"]
[WhiteFideId "1034995"]
[BlackFideId "1046730"]
[WhiteElo "2291"]
[BlackElo "2464"]

1. Nf3 {[%clk 02:00:26]} {[%emt 00:00:02]} d5 {[%clk 01:39:26]} {[%emt
00:20:54]} 2. e3 {[%clk 02:00:35]} {[%emt 00:00:16]} Nf6 {[%clk 01:39:24]}
{[%emt 00:00:18]} 3. c4 {[%clk 02:00:38]} {[%emt 00:00:11]} c6 {[%clk
01:38:34]} {[%emt 00:01:05]} 4. Nc3 {[%clk 02:00:37]} {[%emt 00:00:16]} g6
{[%clk 01:37:13]} {[%emt 00:01:36]} 5. d4 {[%clk 01:59:32]} {[%emt 00:01:20]}
Bg7 {[%clk 01:37:17]} {[%emt 00:00:08]} 6. Be2 {[%clk 01:58:56]} {[%emt
00:00:54]} O-O {[%clk 01:37:11]} {[%emt 00:00:21]} 7. O-O {[%clk 01:58:54]}
{[%emt 00:00:17]} dxc4 {[%clk 01:31:39]} {[%emt 00:05:47]} 8. Bxc4 {[%clk
01:58:44]} {[%emt 00:00:25]} Nbd7 {[%clk 01:31:48]} {[%emt 00:00:07]} 9. e4
{[%clk 01:50:30]} {[%emt 00:08:29]} Nb6 {[%clk 01:28:19]} {[%emt 00:03:43]} 10.
Bb3 {[%clk 01:49:12]} {[%emt 00:01:34]} Bg4 {[%clk 01:26:22]} {[%emt 00:02:12]}
11. e5 {[%clk 01:48:25]} {[%emt 00:01:02]} Nfd5 {[%clk 01:25:21]} {[%emt
00:01:15]} 12. h3 {[%clk 01:48:15]} {[%emt 00:00:25]} Bf5 {[%clk 01:24:42]}
{[%emt 00:00:54]} 13. Qe2 {[%clk 01:47:50]} {[%emt 00:00:40]} Nc7 {[%clk
01:11:33]} {[%emt 00:13:24]} 14. Rd1 {[%clk 01:35:58]} {[%emt 00:12:07]} a5
{[%clk 01:10:13]} {[%emt 00:01:34]} 15. Ne4 {[%clk 01:34:21]} {[%emt 00:01:53]}
a4 {[%clk 01:08:21]} {[%emt 00:02:07]} 16. Bc2 {[%clk 01:34:24]} {[%emt
00:00:12]} a3 {[%clk 01:04:08]} {[%emt 00:04:28]} 17. bxa3 {[%clk 01:26:21]}
{[%emt 00:08:18]} Nb5 {[%clk 01:03:17]} {[%emt 00:01:05]} 18. Bb2 {[%clk
01:20:14]} {[%emt 00:06:22]} Nxa3 {[%clk 00:58:46]} {[%emt 00:04:45]} 19. Bb3
{[%clk 01:18:56]} {[%emt 00:01:33]} Nd5 {[%clk 00:56:40]} {[%emt 00:02:22]} 20.
Nc5 {[%clk 00:50:29]} {[%emt 00:28:43]} Nf4 {[%clk 00:47:03]} {[%emt 00:09:52]}
21. Qf1 {[%clk 00:46:04]} {[%emt 00:04:40]} b6 {[%clk 00:41:07]} {[%emt
00:06:11]} 22. Na4 {[%clk 00:46:03]} {[%emt 00:00:16]} Nc2 {[%clk 00:40:07]}
{[%emt 00:01:15]} 23. Rac1 {[%clk 00:46:05]} {[%emt 00:00:14]} Nb4 {[%clk
00:40:06]} {[%emt 00:00:15]} 24. Ne1 {[%clk 00:43:11]} {[%emt 00:03:09]} Be6
{[%clk 00:38:22]} {[%emt 00:01:59]} 25. Nc3 {[%clk 00:40:34]} {[%emt 00:02:52]}
Nxa2 {[%clk 00:34:37]} {[%emt 00:04:00]} 26. Bxa2 {[%clk 00:39:32]} {[%emt
00:01:18]} Bxa2 {[%clk 00:34:21]} {[%emt 00:00:31]} 27. g3 {[%clk 00:38:12]}
{[%emt 00:01:34]} Nd5 {[%clk 00:32:48]} {[%emt 00:01:49]} 28. Nxa2 {[%clk
00:38:07]} {[%emt 00:00:21]} Rxa2 {[%clk 00:32:56]} {[%emt 00:00:06]} 29. Ba1
{[%clk 00:38:09]} {[%emt 00:00:13]} Qd7 {[%clk 00:32:42]} {[%emt 00:00:29]} 30.
Qc4 {[%clk 00:36:53]} {[%emt 00:01:31]} Rfa8 {[%clk 00:32:25]} {[%emt
00:00:32]} 31. Qf1 {[%clk 00:35:26]} {[%emt 00:01:42]} Bh6 {[%clk 00:31:45]}
{[%emt 00:00:55]} 32. Rb1 {[%clk 00:35:23]} {[%emt 00:00:19]} Ne3 {[%emt
00:04:18]} 0-1

[Event "BPB Limburg Open 2019 Group A"]
[Site "Maastricht, Netherlands"]
[Date "2019.06.10"]
[Round "6.10"]
[White "Ernst, Sipke"]
[Black "Hoornstra, Hans"]
[Result "1-0"]
[TimeControl "2h + 15 sec/move"]
[WhiteFideId "1004689"]
[BlackFideId "1036076"]
[WhiteElo "2541"]
[BlackElo "2038"]

1. Nf3 {[%clk 01:58:22]} {[%emt 00:02:03]} Nf6 {[%clk 02:00:12]} {[%emt
00:00:21]} 2. c4 {[%clk 01:58:19]} {[%emt 00:00:18]} c5 {[%clk 01:59:22]}
{[%emt 00:01:05]} 3. b3 {[%clk 01:58:31]} {[%emt 00:00:04]} e6 {[%clk
01:54:09]} {[%emt 00:05:28]} 4. g3 {[%clk 01:56:06]} {[%emt 00:02:40]} b6
{[%clk 01:53:03]} {[%emt 00:01:21]} 5. Bg2 {[%clk 01:56:17]} {[%emt 00:00:04]}
Bb7 {[%clk 01:53:08]} {[%emt 00:00:10]} 6. O-O {[%clk 01:56:13]} {[%emt
00:00:18]} Be7 {[%clk 01:53:06]} {[%emt 00:00:17]} 7. Bb2 {[%clk 01:56:18]}
{[%emt 00:00:11]} O-O {[%clk 01:52:58]} {[%emt 00:00:22]} 8. Nc3 {[%clk
01:54:44]} {[%emt 00:01:50]} d6 {[%clk 01:52:38]} {[%emt 00:00:35]} 9. d4
{[%clk 01:54:37]} {[%emt 00:00:22]} Nbd7 {[%clk 01:49:45]} {[%emt 00:03:07]} 10.
d5 {[%clk 01:54:27]} {[%emt 00:00:25]} e5 {[%clk 01:49:06]} {[%emt 00:00:54]}
11. e4 {[%clk 01:54:17]} {[%emt 00:00:25]} Ne8 {[%clk 01:44:46]} {[%emt
00:04:36]} 12. Ne1 {[%clk 01:53:49]} {[%emt 00:00:44]} g6 {[%clk 01:37:57]}
{[%emt 00:07:03]} 13. Nd3 {[%clk 01:52:03]} {[%emt 00:02:01]} Ng7 {[%clk
01:33:42]} {[%emt 00:04:30]} 14. f4 {[%clk 01:43:49]} {[%emt 00:08:29]} f6
{[%clk 01:21:54]} {[%emt 00:12:03]} 15. Bh3 {[%clk 01:41:47]} {[%emt 00:02:17]}
Kh8 {[%clk 01:15:44]} {[%emt 00:06:25]} 16. Be6 {[%clk 01:40:21]} {[%emt
00:01:39]} Bc8 {[%clk 01:04:58]} {[%emt 00:11:03]} 17. Rf2 {[%clk 01:36:08]}
{[%emt 00:04:28]} Nb8 {[%clk 01:04:05]} {[%emt 00:01:07]} 18. f5 {[%clk
01:35:41]} {[%emt 00:00:43]} g5 {[%clk 01:02:00]} {[%emt 00:02:20]} 19. h4
{[%clk 01:35:19]} {[%emt 00:00:38]} h5 {[%clk 00:59:48]} {[%emt 00:02:27]} 20.
hxg5 {[%clk 01:34:44]} {[%emt 00:00:51]} fxg5 {[%clk 00:59:54]} {[%emt
00:00:09]} 21. Rh2 {[%clk 01:34:46]} {[%emt 00:00:12]} Rf6 {[%clk 00:58:04]}
{[%emt 00:02:06]} 22. Rxh5+ {[%clk 01:32:25]} {[%emt 00:02:36]} Nxh5 {[%clk
00:56:33]} {[%emt 00:01:45]} 23. Qxh5+ {[%clk 01:32:10]} {[%emt 00:00:30]} Kg7
{[%clk 00:56:25]} {[%emt 00:00:24]} 24. Qxg5+ {[%clk 01:31:01]} {[%emt
00:01:24]} Kh7 {[%clk 00:56:18]} {[%emt 00:00:22]} 25. Bxc8 {[%clk 01:29:22]}
{[%emt 00:01:54]} Qxc8 {[%clk 00:51:57]} {[%emt 00:04:35]} 26. Kg2 {[%clk
01:29:31]} {[%emt 00:00:06]} 1-0

[Event "BPB Limburg Open 2019 Group A"]
[Site "Maastricht, Netherlands"]
[Date "2019.06.10"]
[Round "6.12"]
[White "Pieper, Dawid"]
[Black "Song, Raymond"]
[Result "0-1"]
[TimeControl "2h + 15 sec/move"]
[WhiteFideId "4676106"]
[BlackFideId "3203824"]
[WhiteElo "2175"]
[BlackElo "2450"]

1. e4 {[%clk 02:00:27]} {[%emt 00:00:01]} g6 {[%clk 01:58:46]} {[%emt
00:01:44]} 2. d4 {[%clk 02:00:33]} {[%emt 00:00:09]} Bg7 {[%clk 01:58:56]}
{[%emt 00:00:06]} 3. Nf3 {[%clk 02:00:38]} {[%emt 00:00:09]} d6 {[%clk
01:59:03]} {[%emt 00:00:08]} 4. Bc4 {[%clk 02:00:34]} {[%emt 00:00:19]} e6
{[%clk 01:58:45]} {[%emt 00:00:34]} 5. Bb3 {[%clk 02:00:38]} {[%emt 00:00:11]}
Ne7 {[%clk 01:57:45]} {[%emt 00:01:15]} 6. O-O {[%clk 02:00:40]} {[%emt
00:00:13]} O-O {[%clk 01:56:15]} {[%emt 00:01:45]} 7. c3 {[%clk 02:00:21]}
{[%emt 00:00:33]} b6 {[%clk 01:55:33]} {[%emt 00:00:57]} 8. Bf4 {[%clk
01:59:05]} {[%emt 00:01:30]} Bb7 {[%clk 01:55:38]} {[%emt 00:00:11]} 9. Nbd2
{[%clk 01:58:53]} {[%emt 00:00:27]} Nd7 {[%clk 01:54:36]} {[%emt 00:01:18]} 10.
Qe2 {[%clk 01:52:35]} {[%emt 00:06:32]} h6 {[%clk 01:48:45]} {[%emt 00:06:06]}
11. h3 {[%clk 01:52:21]} {[%emt 00:00:29]} g5 {[%clk 01:43:39]} {[%emt
00:05:21]} 12. Bg3 {[%clk 01:44:14]} {[%emt 00:08:22]} Ng6 {[%clk 01:41:05]}
{[%emt 00:02:50]} 13. Nh2 {[%clk 01:38:27]} {[%emt 00:06:03]} Nf4 {[%clk
01:28:48]} {[%emt 00:12:32]} 14. Qf3 {[%clk 01:20:40]} {[%emt 00:18:02]} e5
{[%clk 01:27:33]} {[%emt 00:01:29]} 15. Ng4 {[%clk 01:17:49]} {[%emt 00:03:06]}
Kh8 {[%clk 01:27:41]} {[%emt 00:00:07]} 16. Ne3 {[%clk 01:15:39]} {[%emt
00:02:25]} f5 {[%clk 01:26:40]} {[%emt 00:01:17]} 17. Bxf4 {[%clk 01:05:35]}
{[%emt 00:10:18]} fxe4 {[%clk 01:19:35]} {[%emt 00:07:20]} 18. Bxg5 {[%clk
00:53:40]} {[%emt 00:12:11]} Qxg5 {[%clk 01:19:44]} {[%emt 00:00:06]} 19. Qg4
{[%clk 00:53:44]} {[%emt 00:00:11]} exd4 {[%clk 01:17:45]} {[%emt 00:02:14]} 20.
cxd4 {[%clk 00:49:50]} {[%emt 00:04:09]} Qxg4 {[%clk 01:17:55]} {[%emt
00:00:05]} 21. hxg4 {[%clk 00:48:44]} {[%emt 00:01:21]} Bxd4 {[%clk 01:18:05]}
{[%emt 00:00:05]} 22. Rac1 {[%clk 00:47:28]} {[%emt 00:01:31]} Nc5 {[%clk
01:17:15]} {[%emt 00:01:05]} 23. Nf5 {[%clk 00:44:55]} {[%emt 00:02:48]} Bxb2
{[%clk 01:17:24]} {[%emt 00:00:05]} 24. Rb1 {[%clk 00:44:39]} {[%emt 00:00:31]}
Bc3 {[%clk 01:16:30]} {[%emt 00:01:09]} 25. Nc4 {[%clk 00:44:20]} {[%emt
00:00:34]} d5 {[%clk 01:15:42]} {[%emt 00:01:03]} 26. Nce3 {[%clk 00:44:30]}
{[%emt 00:00:04]} Nxb3 {[%clk 01:15:49]} {[%emt 00:00:08]} 27. Rxb3 {[%clk
00:44:35]} {[%emt 00:00:10]} d4 {[%clk 01:09:09]} {[%emt 00:06:55]} 28. Nxh6
{[%clk 00:42:36]} {[%emt 00:02:14]} Ba6 {[%clk 01:08:35]} {[%emt 00:00:49]} 29.
Nef5 {[%clk 00:37:35]} {[%emt 00:05:15]} Bxf1 {[%clk 01:08:38]} {[%emt
00:00:12]} 30. Kxf1 {[%clk 00:37:46]} {[%emt 00:00:04]} Kh7 {[%clk 01:08:01]}
{[%emt 00:00:52]} 31. g5 {[%clk 00:37:18]} {[%emt 00:00:43]} Kg6 {[%clk
01:07:50]} {[%emt 00:00:27]} 32. g4 {[%clk 00:37:04]} {[%emt 00:00:28]} Kxg5
{[%clk 01:07:51]} {[%emt 00:00:14]} 33. Kg2 {[%clk 00:36:26]} {[%emt 00:00:53]}
Rf6 {[%clk 01:07:54]} {[%emt 00:00:12]} 0-1

[ePGN "0.1;DGT LiveChess/2.2.4"]

[Event "BPB Limburg Open 2019 Group A"]
[Site "Maastricht, Netherlands"]
[Date "2019.06.10"]
[Round "7.3"]
[White "Schoppen, Casper"]
[Black "Donchenko, Alexander"]
[Result "1/2-1/2"]
[TimeControl "2h + 15 sec/move"]
[WhiteFideId "1046730"]
[BlackFideId "24603295"]
[WhiteElo "2464"]
[BlackElo "2618"]

1. e4 {[%clk 02:00:21]} {[%emt 00:00:08]} c5 {[%clk 01:59:52]} {[%emt
00:00:39]} 2. Nf3 {[%clk 02:00:26]} {[%emt 00:00:10]} d6 {[%clk 02:00:02]}
{[%emt 00:00:06]} 3. d4 {[%clk 02:00:14]} {[%emt 00:00:27]} cxd4 {[%clk
02:00:11]} {[%emt 00:00:06]} 4. Nxd4 {[%clk 02:00:26]} {[%emt 00:00:02]} Nf6
{[%clk 02:00:19]} {[%emt 00:00:07]} 5. Nc3 {[%clk 02:00:33]} {[%emt 00:00:07]}
a6 {[%clk 02:00:31]} {[%emt 00:00:04]} 6. Bg5 {[%clk 01:57:13]} {[%emt
00:03:35]} Nbd7 {[%clk 02:00:37]} {[%emt 00:00:08]} 7. Qe2 {[%clk 01:56:50]}
{[%emt 00:00:38]} h6 {[%clk 02:00:44]} {[%emt 00:00:08]} 8. Bh4 {[%clk
01:56:58]} {[%emt 00:00:07]} g6 {[%clk 02:00:52]} {[%emt 00:00:07]} 9. f4
{[%clk 01:56:33]} {[%emt 00:00:40]} e5 {[%clk 02:01:00]} {[%emt 00:00:08]} 10.
fxe5 {[%clk 01:56:16]} {[%emt 00:00:32]} dxe5 {[%clk 02:01:08]} {[%emt
00:00:06]} 11. O-O-O {[%clk 01:55:58]} {[%emt 00:00:33]} Qc7 {[%clk 02:01:17]}
{[%emt 00:00:06]} 12. Nb3 {[%clk 01:55:57]} {[%emt 00:00:17]} b5 {[%clk
02:01:24]} {[%emt 00:00:08]} 13. Rxd7 {[%clk 01:46:55]} {[%emt 00:09:17]} Nxd7
{[%clk 02:01:31]} {[%emt 00:00:08]} 14. Nd5 {[%clk 01:47:07]} {[%emt 00:00:04]}
Qb8 {[%clk 01:54:33]} {[%emt 00:07:13]} 15. Na5 {[%clk 01:44:35]} {[%emt
00:02:47]} Bg7 {[%clk 01:49:17]} {[%emt 00:05:31]} 16. Qd2 {[%clk 01:20:22]}
{[%emt 00:24:27]} O-O {[%clk 01:30:04]} {[%emt 00:19:27]} 17. Nc6 {[%clk
00:44:33]} {[%emt 00:36:05]} Qb7 {[%clk 01:30:08]} {[%emt 00:00:11]} 18. Na5
{[%clk 00:43:38]} {[%emt 00:01:11]} Qb8 {[%clk 01:30:07]} {[%emt 00:00:16]} 19.
Nc6 {[%clk 00:42:27]} {[%emt 00:01:26]} Qb7 {[%clk 01:30:16]} {[%emt 00:00:06]}
20. Na5 {[%clk 00:42:29]} {[%emt 00:00:13]} Qb8 {[%clk 01:30:24]} {[%emt
00:00:06]} 1/2-1/2